bitfinex/quotes_SOLUSD_20230101
["timestamp","ask_amount","ask_price","bid_price","bid_amount"]
[1672560416024,76.61,9.8008,9.7951,24.2764]
[1672560416208,40.0,9.8007,9.7951,24.2764]
[1672560416425,40.0,9.8005,9.7951,24.2764]
[1672560416740,40.0,9.8003,9.7951,24.2764]
[1672560417077,40.0,9.8001,9.7951,24.2764]
[1672560417259,40.0,9.7999,9.7951,24.2764]
[1672560417595,40.0,9.7997,9.7951,24.2764]
[1672560417805,76.62,9.7996,9.7951,24.2764]
[1672560417989,40.0,9.7995,9.7951,24.2764]
[1672560419684,40.0,9.7993,9.7951,24.2764]
[1672560419924,40.0,9.7991,9.7951,24.2764]
[1672560420931,40.0,9.7989,9.7951,24.2764]
[1672560426096,40.0,9.7987,9.7951,24.2764]
[1672560426310,40.0,9.7985,9.7951,24.2764]
[1672560426540,76.63,9.7984,9.7951,24.2764]
[1672560426729,40.0,9.7985,9.7941,23.5073]
[1672560427142,40.0,9.7983,9.7941,23.5073]
[1672560427430,40.0,9.7981,9.7941,23.5073]
[1672560427597,76.63,9.798,9.7941,23.5073]
[1672560427862,40.0,9.7979,9.7941,23.5073]
[1672560427992,40.0,9.7977,9.7941,23.5073]
[1672560428206,40.0,9.7975,9.7941,23.5073]
[1672560428420,40.0,9.7975,9.7905,24.8867]
[1672560428421,20.0,9.7974,9.7883,76.71]
[1672560428629,20.0,9.7974,9.7833,40.0]
[1672560428630,116.64,9.7973,9.7837,40.0]
[1672560428938,40.0,9.7969,9.785,40.0]
[1672560429132,40.0,9.7967,9.7852,307.9]
[1672560429344,40.0,9.7965,9.7855,40.0]
[1672560429572,20.0,9.7964,9.7858,40.0]
[1672560429784,40.0,9.7963,9.7861,40.0]
[1672560430006,20.0,9.7962,9.7863,307.9]
[1672560430209,20.0,9.7962,9.7866,40.0]
[1672560430415,40.0,9.796,9.7867,384.62]
[1672560430614,20.0,9.7959,9.7867,384.62]
[1672560431040,40.0,9.7957,9.7867,384.62]
[1672560431549,20.0,9.7956,9.7867,384.62]
[1672560431758,40.0,9.7955,9.7867,384.62]
[1672560431982,20.0,9.7954,9.7867,384.62]
[1672560432388,40.0,9.7952,9.7867,384.62]
[1672560433033,20.0,9.7951,9.7867,384.62]
[1672560434067,40.0,9.795,9.7867,76.72]
[1672560434274,40.0,9.795,9.7858,76.73]
[1672560434487,40.0,9.7948,9.7857,384.63]
[1672560434803,20.0,9.7947,9.7857,384.63]
[1672560435008,40.0,9.7946,9.7857,384.63]
[1672560435242,20.0,9.7945,9.7857,384.63]
[1672560435662,40.0,9.7943,9.7857,384.63]
[1672560436083,40.0,9.7941,9.7857,384.63]
[1672560436298,20.0,9.794,9.7857,384.63]
[1672560438095,20.0,9.794,9.7858,40.0]
[1672560438283,20.0,9.794,9.7859,76.73]
[1672560440802,20.0,9.794,9.786,40.0]
[1672560441026,20.0,9.794,9.7861,76.73]
[1672560441239,20.0,9.794,9.7858,40.0]
[1672560441443,20.0,9.794,9.7859,76.73]
[1672560441658,20.0,9.794,9.786,40.0]
[1672560441968,20.0,9.794,9.7862,40.0]
[1672560442184,20.0,9.794,9.7863,76.73]
[1672560442378,20.0,9.794,9.786,40.0]
[1672560442588,20.0,9.794,9.7862,40.0]
[1672560442805,20.0,9.794,9.7863,76.73]
[1672560443230,20.0,9.794,9.7859,76.73]
[1672560443436,20.0,9.794,9.786,40.0]
[1672560443762,20.0,9.794,9.7861,76.73]
[1672560444281,40.0,9.7939,9.7861,76.73]
[1672560444483,20.0,9.7938,9.7858,40.0]
[1672560444693,20.0,9.794,9.7859,76.73]
[1672560444904,40.0,9.7939,9.7859,76.73]
[1672560445119,40.0,9.7939,9.7859,40.0]
[1672560445336,20.0,9.7938,9.786,76.73]
[1672560445960,20.0,9.794,9.7859,76.73]
[1672560446176,20.0,9.794,9.7857,76.73]
[1672560446497,20.0,9.794,9.7858,40.0]
[1672560446711,20.0,9.794,9.786,40.0]
[1672560446914,20.0,9.794,9.7861,76.73]
[1672560447762,20.0,9.794,9.7859,76.73]
[1672560447763,40.0,9.7939,9.7859,76.73]
[1672560447975,20.0,9.7938,9.7858,76.73]
[1672560448164,40.0,9.7937,9.7858,76.73]
[1672560448377,20.0,9.7936,9.7857,76.73]
[1672560449024,20.0,9.7936,9.7858,40.0]
[1672560449237,20.0,9.7936,9.786,40.0]
[1672560449429,20.0,9.7938,9.7861,76.73]
[1672560449867,20.0,9.7938,9.7862,40.0]
[1672560450070,20.0,9.7938,9.7863,76.73]
[1672560451437,40.0,9.7937,9.7863,76.73]
[1672560451654,20.0,9.7938,9.7857,76.73]
[1672560451863,20.0,9.7938,9.7858,40.0]
[1672560452087,20.0,9.7938,9.7859,76.73]
[1672560452795,20.0,9.7938,9.786,40.0]
[1672560453008,20.0,9.7938,9.7861,76.73]
[1672560454383,20.0,9.7938,9.7862,40.0]
[1672560454707,20.0,9.7938,9.7858,76.73]
[1672560454708,20.0,9.7938,9.7859,40.0]
[1672560454914,20.0,9.7938,9.786,76.73]
[1672560455117,20.0,9.7938,9.7858,76.73]
[1672560455787,20.0,9.7938,9.7859,40.0]
[1672560456022,20.0,9.7938,9.786,76.73]
[1672560456512,76.67,9.7937,9.7838,23.2432]
[1672560456723,40.0,9.7935,9.7838,23.2432]
[1672560456924,96.67,9.7934,9.7838,23.2432]
[1672560457344,40.0,9.7933,9.7838,23.2432]
[1672560457560,96.67,9.7932,9.7838,23.2432]
[1672560457893,40.0,9.7931,9.7838,23.2432]
[1672560457974,96.67,9.793,9.7838,23.2432]
[1672560458193,40.0,9.7929,9.7838,23.2432]
[1672560458405,96.68,9.7928,9.7838,23.2432]
[1672560458620,40.0,9.7927,9.7838,23.2432]
[1672560458832,76.67,9.7926,9.7838,23.2432]
[1672560459031,40.0,9.7925,9.7838,23.2432]
[1672560459259,76.67,9.7924,9.7838,23.2432]
[1672560459656,40.0,9.7923,9.7838,23.2432]
[1672560459988,40.0,9.7921,9.7838,23.2432]
[1672560460190,76.68,9.792,9.7838,23.2432]
[1672560460399,40.0,9.7919,9.7838,23.2432]
[1672560460606,40.0,9.7917,9.7838,23.2432]
[1672560460812,76.68,9.7916,9.7838,23.2432]
[1672560461021,40.0,9.7915,9.7838,23.2432]
[1672560461243,76.68,9.7914,9.7838,23.2432]
[1672560461443,40.0,9.7913,9.7838,23.2432]
[1672560461761,40.0,9.7911,9.7838,23.2432]
[1672560462005,40.0,9.7909,9.7838,23.2432]
[1672560462188,76.69,9.7908,9.7838,23.2432]
[1672560462383,40.0,9.7907,9.7838,23.2432]
[1672560462600,40.0,9.7905,9.7838,23.2432]
[1672560463349,76.69,9.7904,9.7838,23.2432]
[1672560463547,40.0,9.7903,9.7838,23.2432]
[1672560463748,40.0,9.7901,9.7838,23.2432]
[1672560468273,40.0,9.7899,9.7838,23.2432]
[1672560473206,76.68,9.7916,9.7838,23.2432]
[1672560473737,40.0,9.7915,9.7838,23.2432]
[1672560474145,40.0,9.7913,9.7838,23.2432]
[1672560474562,40.0,9.7911,9.7838,23.2432]
[1672560474772,40.0,9.7909,9.7838,23.2432]
[1672560476154,40.0,9.7915,9.7838,23.2432]
[1672560476680,76.68,9.7914,9.7838,23.2432]
[1672560476877,40.0,9.7913,9.7838,23.2432]
[1672560480354,40.0,9.7911,9.7838,23.2432]
[1672560480561,76.68,9.791,9.7838,23.2432]
[1672560480788,40.0,9.7909,9.7838,23.2432]
[1672560480966,40.0,9.7907,9.7838,23.2432]
[1672560483188,40.0,9.7905,9.7838,23.2432]
[1672560483511,40.0,9.7903,9.7838,23.2432]
[1672560485501,40.0,9.7905,9.7838,23.2432]
[1672560486429,40.0,9.7903,9.7838,23.2432]
[1672560486641,40.0,9.7901,9.7838,23.2432]
[1672560486981,40.0,9.7899,9.7838,23.2432]
[1672560489375,40.0,9.7897,9.7838,23.2432]
[1672560489596,40.0,9.7895,9.7838,23.2432]
[1672560489784,76.7,9.7894,9.7838,23.2432]
[1672560489999,40.0,9.7893,9.7838,23.2432]
[1672560490222,76.7,9.7892,9.7838,23.2432]
[1672560490436,40.0,9.7891,9.7838,23.2432]
[1672560490650,40.0,9.7889,9.7838,23.2432]
[1672560494830,76.7,9.789,9.7838,23.2432]
[1672560495054,76.69,9.79,9.7838,23.2432]
[1672560495282,76.69,9.7898,9.7838,23.2432]
[1672560496124,76.69,9.7902,9.7838,23.2432]
[1672560496336,40.0,9.7895,9.7838,23.2432]
[1672560504639,40.0,9.7893,9.7838,23.2432]
[1672560504838,40.0,9.7891,9.7838,23.2432]
[1672560505048,76.7,9.789,9.7838,23.2432]
[1672560505259,40.0,9.7891,9.7838,23.2432]
[1672560507380,76.7,9.7892,9.7838,23.2432]
[1672560507594,76.7,9.7894,9.7838,23.2432]
[1672560507793,76.69,9.7898,9.7838,23.2432]
[1672560507995,40.0,9.7897,9.7838,23.2432]
[1672560508206,40.0,9.7895,9.7838,23.2432]
[1672560508416,76.68,9.791,9.7838,23.2432]
[1672560509376,40.0,9.7905,9.7838,23.2432]
[1672560510318,76.69,9.7908,9.7838,23.2432]
[1672560510525,76.69,9.7906,9.7838,23.2432]
[1672560510733,40.0,9.7905,9.7838,23.2432]
[1672560510946,76.69,9.7904,9.7838,23.2432]
[1672560511157,40.0,9.7903,9.7838,23.2432]
[1672560511361,40.0,9.7901,9.7838,23.2432]
[1672560511571,40.0,9.7899,9.7838,23.2432]
[1672560511777,76.69,9.7898,9.7838,23.2432]
[1672560511986,40.0,9.7897,9.7838,23.2432]
[1672560512319,40.0,9.7895,9.7838,23.2432]
[1672560512637,40.0,9.7893,9.7838,23.2432]
[1672560512820,40.0,9.7891,9.7838,23.2432]
[1672560514202,76.7,9.789,9.7838,23.2432]
[1672560514419,40.0,9.7889,9.7838,23.2432]
[1672560514612,76.7,9.7888,9.7838,23.2432]
[1672560514824,40.0,9.7887,9.7838,23.2432]
[1672560515151,40.0,9.7885,9.7838,23.2432]
[1672560515360,76.7,9.7884,9.7838,23.2432]
[1672560515767,40.0,9.7883,9.7838,23.2432]
[1672560515979,40.0,9.7881,9.7838,23.2432]
[1672560516833,40.0,9.7879,9.7838,23.2432]
[1672560518935,40.0,9.7877,9.7838,23.2432]
[1672560523028,40.0,9.7879,9.7838,23.2432]
[1672560525141,40.0,9.7877,9.7838,23.2432]
[1672560525360,40.0,9.7875,9.7838,23.2432]
[1672560525570,76.71,9.7874,9.7838,23.2432]
[1672560525787,40.0,9.7873,9.7838,23.2432]
[1672560525991,40.0,9.7871,9.7838,23.2432]
[1672560526186,40.0,9.7869,9.7833,24.3558]
[1672560526937,40.0,9.7869,9.7825,114.8703]
[1672560527253,76.71,9.7874,9.7825,114.8703]
[1672560527568,76.71,9.7876,9.7825,114.8703]
[1672560527760,40.0,9.7877,9.7825,114.8703]
[1672560530701,40.0,9.7877,9.7707,174.17391844]
[1672560530702,152.75479248,9.7869,9.7763,76.8]
[1672560530910,152.75479248,9.7869,9.7735,307.9]
[1672560530911,96.72,9.7868,9.775,22.792]
[1672560531135,40.0,9.7867,9.7751,99.602]
[1672560531331,40.0,9.7865,9.7751,22.792]
[1672560531666,40.0,9.7863,9.7751,22.792]
[1672560531874,96.72,9.7862,9.7752,22.792]
[1672560532069,40.0,9.7861,9.7752,22.792]
[1672560532280,40.0,9.7859,9.7752,22.792]
[1672560532498,96.73,9.7858,9.7752,22.792]
[1672560532728,40.0,9.7857,9.7752,22.792]
[1672560533035,40.0,9.7855,9.7752,22.792]
[1672560533219,40.0,9.7853,9.7752,22.792]
[1672560533430,96.73,9.7852,9.7752,22.70035231]
[1672560533645,40.0,9.7851,9.7752,22.70035231]
[1672560533860,40.0,9.7849,9.7752,22.70035231]
[1672560534070,40.0,9.7847,9.7752,22.70035231]
[1672560534398,40.0,9.7845,9.7752,22.70035231]
[1672560534585,96.74,9.7844,9.7752,22.70035231]
[1672560534800,40.0,9.7843,9.7752,22.70035231]
[1672560535005,40.0,9.7841,9.7752,22.70035231]
[1672560535248,40.0,9.7839,9.7752,22.70035231]
[1672560535459,96.74,9.7838,9.7752,22.70035231]
[1672560535667,40.0,9.7837,9.7752,22.70035231]
[1672560535985,40.0,9.7835,9.7752,22.70035231]
[1672560536174,40.0,9.7833,9.7752,22.70035231]
[1672560536383,96.75,9.7832,9.7752,22.70035231]
[1672560536707,40.0,9.7831,9.7752,22.70035231]
[1672560536914,40.0,9.7829,9.7752,22.70035231]
[1672560537144,40.0,9.7827,9.7752,22.70035231]
[1672560537330,20.0,9.7826,9.7752,22.70035231]
[1672560537982,40.0,9.7825,9.7752,22.70035231]
[1672560539959,40.0,9.7823,9.7752,22.70035231]
[1672560540167,76.75,9.7822,9.7752,22.70035231]
[1672560540400,40.0,9.7821,9.7752,22.70035231]
[1672560542487,40.0,9.7825,9.7752,22.70035231]
[1672560543231,96.75,9.7826,9.7752,22.70035231]
[1672560543447,40.0,9.7825,9.7752,22.70035231]
[1672560544168,76.75,9.7824,9.7752,22.70035231]
[1672560544377,40.0,9.7823,9.7752,22.70035231]
[1672560544582,76.75,9.7824,9.7752,22.70035231]
[1672560544803,20.0,9.7826,9.7752,22.70035231]
[1672560545012,40.0,9.7828,9.7752,22.70035231]
[1672560545239,20.0,9.7827,9.7752,22.70035231]
[1672560545442,40.0,9.7826,9.7752,22.70035231]
[1672560547541,20.0,9.7827,9.7752,22.70035231]
[1672560548272,40.0,9.7826,9.7752,22.70035231]
[1672560552585,20.0,9.7827,9.7752,22.70035231]
[1672560552787,20.0,9.7829,9.7752,22.70035231]
[1672560552993,20.0,9.783,9.7752,22.70035231]
[1672560553199,40.0,9.7829,9.7752,22.70035231]
[1672560553409,20.0,9.7828,9.7752,22.70035231]
[1672560553627,76.75,9.7827,9.7752,22.70035231]
[1672560553837,20.0,9.7826,9.7752,22.70035231]
[1672560554573,20.0,9.783,9.7752,22.70035231]
[1672560554792,76.75,9.7829,9.7752,22.70035231]
[1672560555005,20.0,9.7828,9.7752,22.70035231]
[1672560555217,76.75,9.7827,9.7752,22.70035231]
[1672560555427,20.0,9.7826,9.7752,22.70035231]
[1672560555952,76.75,9.7831,9.7752,22.70035231]
[1672560555953,20.0,9.783,9.7753,116.81]
[1672560556256,20.0,9.7831,9.7755,40.0]
[1672560556469,20.0,9.7831,9.7758,40.0]
[1672560556670,20.0,9.7831,9.776,307.9]
[1672560556877,20.0,9.7831,9.7762,307.9]
[1672560557092,20.0,9.7831,9.7765,40.0]
[1672560557293,20.0,9.7831,9.7768,40.0]
[1672560557509,20.0,9.7831,9.777,307.9]
[1672560557718,20.0,9.7831,9.7772,307.9]
[1672560557931,20.0,9.7831,9.7775,40.0]
[1672560558136,20.0,9.7831,9.7777,307.9]
[1672560558357,20.0,9.7831,9.7779,307.9]
[1672560558573,20.0,9.7831,9.7781,40.0]
[1672560558783,20.0,9.7831,9.7783,40.0]
[1672560559004,20.0,9.7831,9.7784,76.78]
[1672560559192,20.0,9.7831,9.7785,40.0]
[1672560559730,20.0,9.7831,9.7784,76.78]
[1672560559946,20.0,9.7831,9.7785,40.0]
[1672560560562,20.0,9.7831,9.7787,40.0]
[1672560560767,20.0,9.7831,9.7789,40.0]
[1672560561291,20.0,9.7831,9.7786,76.78]
[1672560561728,20.0,9.7831,9.7785,40.0]
[1672560561923,20.0,9.7831,9.7786,76.78]
[1672560562133,20.0,9.7831,9.7783,40.0]
[1672560562368,20.0,9.7831,9.7781,116.79]
[1672560563622,20.0,9.7831,9.7782,40.0]
[1672560563833,20.0,9.7831,9.7783,76.78]
[1672560564678,20.0,9.7831,9.7775,40.0]
[1672560564882,20.0,9.7831,9.7777,40.0]
[1672560565095,20.0,9.7831,9.7774,76.79]
[1672560565619,20.0,9.7831,9.7768,40.0]
[1672560565620,20.0,9.7831,9.777,40.0]
[1672560565823,20.0,9.7831,9.7771,76.79]
[1672560566030,20.0,9.7831,9.7774,40.0]
[1672560567187,20.0,9.7831,9.7771,76.79]
[1672560567410,20.0,9.7831,9.7774,40.0]
[1672560568365,20.0,9.7831,9.7768,40.0]
[1672560569310,20.0,9.7831,9.7774,40.0]
[1672560569712,20.0,9.7831,9.7774,307.9]
[1672560569928,20.0,9.7831,9.7775,40.0]
[1672560570246,20.0,9.7831,9.7778,40.0]
[1672560572464,20.0,9.7831,9.7777,307.9]
[1672560572678,20.0,9.7831,9.7775,40.0]
[1672560572866,20.0,9.7831,9.7774,307.9]
[1672560573710,20.0,9.7831,9.7776,307.9]
[1672560573921,20.0,9.7831,9.7778,307.9]
[1672560574342,20.0,9.7831,9.7779,76.79]
[1672560574560,20.0,9.7831,9.7774,76.79]
[1672560574876,20.0,9.7831,9.7775,40.0]
[1672560575093,20.0,9.7831,9.7776,76.79]
[1672560575291,20.0,9.7831,9.7777,40.0]
[1672560577717,20.0,9.7831,9.7777,347.9]
[1672560577910,20.0,9.7831,9.7779,347.9]
[1672560578120,20.0,9.7831,9.7782,40.0]
[1672560578546,20.0,9.7831,9.778,76.79]
[1672560578879,20.0,9.7831,9.777,40.0]
[1672560579071,20.0,9.7831,9.7772,347.9]
[1672560579281,20.0,9.7831,9.7775,40.0]
[1672560579509,20.0,9.7831,9.7777,307.9]
[1672560579712,20.0,9.7831,9.7779,307.9]
[1672560579924,20.0,9.7831,9.778,40.0]
[1672560581067,20.0,9.7831,9.7779,307.9]
[1672560581693,20.0,9.7831,9.778,40.0]
[1672560582432,20.0,9.7831,9.7778,40.0]
[1672560582649,20.0,9.7831,9.7779,307.9]
[1672560583274,20.0,9.7831,9.778,40.0]
[1672560586342,20.0,9.7831,9.7779,384.69]
[1672560586554,20.0,9.7831,9.7773,40.0]
[1672560586766,20.0,9.7831,9.7776,40.0]
[1672560587093,20.0,9.7831,9.7778,40.0]
[1672560587624,20.0,9.7831,9.7774,76.79]
[1672560587942,20.0,9.7831,9.7759,307.9]
[1672560587943,20.0,9.7831,9.7767,76.8]
[1672560588144,20.0,9.7831,9.7761,76.8]
[1672560588348,40.0,9.783,9.7761,76.8]
[1672560588675,40.0,9.783,9.7753,76.81]
[1672560588869,20.0,9.7829,9.7753,76.81]
[1672560589406,20.0,9.7831,9.7754,40.0]
[1672560589604,20.0,9.7831,9.7755,76.81]
[1672560589813,20.0,9.7831,9.7756,40.0]
[1672560590037,20.0,9.7831,9.7757,76.8]
[1672560590246,20.0,9.7831,9.7758,40.0]
[1672560590466,20.0,9.7831,9.7759,76.8]
[1672560591710,40.0,9.783,9.7757,76.8]
[1672560591928,20.0,9.7829,9.7745,76.81]
[1672560594763,40.0,9.7828,9.7745,76.81]
[1672560594960,96.75,9.7827,9.7736,76.82]
[1672560595171,40.0,9.7826,9.7724,76.83]
[1672560595398,40.0,9.7824,9.7715,40.0]
[1672560595603,40.0,9.7822,9.7717,40.0]
[1672560595827,76.75,9.7821,9.7718,76.84]
[1672560596040,40.0,9.782,9.7719,40.0]
[1672560596248,40.0,9.7818,9.772,76.83]
[1672560596461,40.0,9.7816,9.772,76.83]
[1672560596890,40.0,9.7816,9.7721,40.0]
[1672560597076,40.0,9.7816,9.7722,76.83]
[1672560597288,40.0,9.7814,9.7714,76.84]
[1672560597497,40.0,9.7812,9.7715,40.0]
[1672560597712,40.0,9.7812,9.7717,40.0]
[1672560597932,40.0,9.7812,9.7719,40.0]
[1672560598230,40.0,9.781,9.7721,40.0]
[1672560598437,40.0,9.781,9.7723,40.0]
[1672560598669,40.0,9.781,9.7724,76.83]
[1672560598880,76.76,9.7811,9.7725,40.0]
[1672560599078,40.0,9.7816,9.7726,76.83]
[1672560599284,40.0,9.7814,9.7726,76.83]
[1672560599494,40.0,9.7812,9.7726,76.83]
[1672560599711,76.76,9.7811,9.7726,76.83]
[1672560599915,40.0,9.781,9.7726,76.83]
[1672560600330,76.76,9.7811,9.7726,76.83]
[1672560600557,40.0,9.7814,9.7726,76.83]
[1672560600878,40.0,9.7812,9.7726,76.83]
[1672560601090,40.0,9.781,9.7726,76.83]
[1672560602121,76.76,9.7811,9.7727,40.0]
[1672560602336,76.76,9.7815,9.7728,76.83]
[1672560602548,40.0,9.7814,9.7728,76.83]
[1672560602751,76.76,9.7813,9.7728,76.83]
[1672560602975,40.0,9.7812,9.7728,76.83]
[1672560603290,40.0,9.781,9.7728,76.83]
[1672560603507,40.0,9.781,9.7723,40.0]
[1672560603695,40.0,9.781,9.7724,76.83]
[1672560603905,40.0,9.781,9.7725,40.0]
[1672560604116,40.0,9.781,9.7726,76.83]
[1672560604337,40.0,9.781,9.7724,76.83]
[1672560606429,40.0,9.781,9.7722,76.83]
[1672560606749,40.0,9.781,9.7723,40.0]
[1672560607073,40.0,9.781,9.7725,40.0]
[1672560607396,40.0,9.781,9.7727,40.0]
[1672560607706,40.0,9.781,9.7728,76.83]
[1672560607924,76.76,9.7811,9.7728,76.83]
[1672560608144,40.0,9.7812,9.7728,76.83]
[1672560608355,40.0,9.781,9.7729,40.0]
[1672560608755,40.0,9.7812,9.773,76.83]
[1672560609069,40.0,9.7814,9.773,76.83]
[1672560609495,76.76,9.7815,9.7731,40.0]
[1672560609696,76.76,9.7815,9.7732,76.82]
[1672560609905,76.76,9.7817,9.7732,76.82]
[1672560610129,40.0,9.7816,9.7732,76.82]
[1672560610344,76.76,9.7815,9.7733,40.0]
[1672560610547,40.0,9.7814,9.7733,40.0]
[1672560610756,40.0,9.7812,9.7733,40.0]
[1672560610969,76.76,9.7811,9.7733,40.0]
[1672560611171,40.0,9.7812,9.7733,40.0]
[1672560611381,76.76,9.7813,9.7733,40.0]
[1672560612540,76.75,9.7823,9.7733,40.0]
[1672560612746,76.75,9.7823,9.7745,40.0]
[1672560612951,23.1741,9.7825,9.7745,40.0]
[1672560612952,76.75,9.7824,9.7745,40.0]
[1672560613161,40.0,9.7823,9.7745,40.0]
[1672560613372,76.75,9.7822,9.7745,40.0]
[1672560613807,23.1741,9.7825,9.7745,40.0]
[1672560614017,76.75,9.7824,9.7739,307.9]
[1672560614230,76.75,9.7824,9.774,384.72]
[1672560614231,40.0,9.7823,9.774,384.72]
[1672560614548,40.0,9.7821,9.7741,40.0]
[1672560615075,76.75,9.7822,9.7739,76.82]
[1672560615387,76.75,9.7822,9.7743,76.82]
[1672560615579,76.75,9.7822,9.7733,40.0]
[1672560615790,40.0,9.7821,9.7734,76.82]
[1672560616015,76.76,9.782,9.7734,76.82]
[1672560616236,40.0,9.7819,9.7734,76.82]
[1672560616754,76.76,9.782,9.7734,76.82]
[1672560617591,40.0,9.7823,9.7735,40.0]
[1672560617805,76.75,9.7822,9.7736,76.82]
[1672560618015,40.0,9.7821,9.7736,76.82]
[1672560618330,40.0,9.7819,9.7736,76.82]
[1672560621169,40.0,9.7819,9.7726,76.83]
[1672560621377,40.0,9.7819,9.7727,40.0]
[1672560621590,40.0,9.7817,9.7728,76.83]
[1672560622430,40.0,9.7817,9.772,40.0]
[1672560622751,40.0,9.7817,9.7722,40.0]
[1672560622965,40.0,9.7815,9.7724,40.0]
[1672560623157,76.76,9.7814,9.7725,76.83]
[1672560623488,40.0,9.7813,9.7726,40.0]
[1672560623698,40.0,9.7811,9.7727,76.83]
[1672560623912,40.0,9.7811,9.7726,40.0]
[1672560624098,40.0,9.7811,9.7727,76.83]
[1672560624536,40.0,9.7811,9.7728,40.0]
[1672560624727,40.0,9.7811,9.7729,76.83]
[1672560625149,76.76,9.7812,9.7729,76.83]
[1672560626001,76.76,9.7812,9.773,40.0]
[1672560626209,76.76,9.7818,9.7732,40.0]
[1672560626416,40.0,9.7817,9.7732,40.0]
[1672560626626,40.0,9.7817,9.7733,76.82]
[1672560627377,76.76,9.782,9.7733,76.82]
[1672560627772,76.76,9.782,9.7745,40.0]
[1672560627982,76.75,9.7824,9.7745,40.0]
[1672560628407,40.0,9.7823,9.7735,76.82]
[1672560628617,76.75,9.7822,9.7735,76.82]
[1672560630215,76.75,9.7824,9.7745,40.0]
[1672560630421,76.75,9.7824,9.7735,76.82]
[1672560631256,76.75,9.7824,9.7745,40.0]
[1672560631461,40.0,9.7823,9.7735,76.82]
[1672560631690,76.75,9.7822,9.7735,76.82]
[1672560631900,40.0,9.7821,9.7735,76.82]
[1672560632093,76.76,9.782,9.7734,40.0]
[1672560632428,40.0,9.7819,9.7734,40.0]
[1672560632732,76.76,9.7818,9.7734,40.0]
[1672560632949,40.0,9.7819,9.7734,40.0]
[1672560633143,76.76,9.7818,9.7734,40.0]
[1672560633878,40.0,9.7817,9.7734,40.0]
[1672560634083,40.0,9.7815,9.7723,76.83]
[1672560634310,76.76,9.7814,9.7727,76.83]
[1672560634522,40.0,9.7813,9.7727,76.83]
[1672560634726,40.0,9.7811,9.7727,76.83]
[1672560634939,76.76,9.781,9.7727,76.83]
[1672560635354,76.76,9.782,9.7745,40.0]
[1672560635566,611.01916991,9.7936,9.7745,40.0]
[1672560635567,76.75,9.7824,9.7745,40.0]
[1672560636821,76.75,9.7826,9.7745,40.0]
[1672560637350,76.75,9.7824,9.7745,40.0]
[1672560641566,76.73,9.7847,9.7753,76.81]
[1672560641780,76.73,9.7851,9.7754,307.9]
[1672560641995,76.72,9.7868,9.7757,40.0]
[1672560642305,40.0,9.7869,9.776,40.0]
[1672560642506,76.72,9.7868,9.7763,40.0]
[1672560642727,76.72,9.7868,9.7765,307.9]
[1672560643037,76.72,9.7868,9.7767,307.9]
[1672560643355,40.0,9.7867,9.777,40.0]
[1672560643555,76.72,9.7866,9.7772,307.9]
[1672560643769,40.0,9.7875,9.7775,40.0]
[1672560643987,76.71,9.7874,9.7778,40.0]
[1672560644187,76.71,9.7874,9.778,307.9]
[1672560644188,40.0,9.7873,9.778,307.9]
[1672560644392,40.0,9.7871,9.7781,40.0]
[1672560644602,40.0,9.7869,9.7781,40.0]
[1672560644813,76.72,9.7868,9.7781,40.0]
[1672560645244,20.0,9.7837,9.7781,40.0]
[1672560654490,20.0,9.7837,9.778,307.9]
[1672560654699,20.0,9.7837,9.7781,40.0]
[1672560662472,20.0,9.7837,9.7778,76.79]
[1672560662687,20.0,9.7837,9.7755,307.9]
[1672560662891,20.0,9.7837,9.7771,381.14726916]
[1672560663099,20.0,9.7837,9.7772,76.79]
[1672560663312,20.0,9.7837,9.7756,40.0]